[Event "*** Titled Tuesday Blitz"]
[Site "Chess.com"]
[Date "2020.05.12"]
[Round "10"]
[White "Zarikovs1999"]
[Black "doons21"]
[Result "1/2-1/2"]
[WhiteElo "2402"]
[BlackElo "2524"]
[TimeControl "180+1"]
[EndTime "11:51:50 PDT"]
[Termination "Game drawn by repetition"]

1. Nf3 {[%clk 0:02:58.2]} 1... Nf6 {[%clk 0:03:00.2]} 2. c4 {[%clk 0:02:55.8]}
2... g6 {[%clk 0:03:01.1]} 3. Nc3 {[%clk 0:02:54]} 3... Bg7 {[%clk 0:03:02]} 4.
g3 {[%clk 0:02:54.7]} 4... O-O {[%clk 0:03:02.9]} 5. Bg2 {[%clk 0:02:55.5]} 5...
d6 {[%clk 0:03:03.2]} 6. O-O {[%clk 0:02:55.7]} 6... c6 {[%clk 0:03:02.6]} 7. d4
{[%clk 0:02:56.6]} 7... Bf5 {[%clk 0:03:02.1]} 8. b3 {[%clk 0:02:54.5]} 8... Ne4
{[%clk 0:03:02.1]} 9. Bb2 {[%clk 0:02:52.7]} 9... Nxc3 {[%clk 0:03:01.9]} 10.
Bxc3 {[%clk 0:02:52.6]} 10... Be4 {[%clk 0:03:02.8]} 11. Nd2 {[%clk 0:02:48.6]}
11... Bxg2 {[%clk 0:03:02.4]} 12. Kxg2 {[%clk 0:02:49.5]} 12... d5 {[%clk
0:03:02.8]} 13. Nf3 {[%clk 0:02:46]} 13... e6 {[%clk 0:02:58.8]} 14. Qd3 {[%clk
0:02:45.5]} 14... a5 {[%clk 0:02:47.8]} 15. e4 {[%clk 0:02:38.4]} 15... a4
{[%clk 0:02:48]} 16. Rfd1 {[%clk 0:02:26.7]} 16... Nd7 {[%clk 0:02:42.2]} 17. b4
{[%clk 0:02:04.7]} 17... Nf6 {[%clk 0:02:36.5]} 18. e5 {[%clk 0:02:00.7]} 18...
dxc4 {[%clk 0:02:33.6]} 19. Qxc4 {[%clk 0:01:59.1]} 19... Nd5 {[%clk 0:02:33.9]}
20. a3 {[%clk 0:01:53.7]} 20... Qd7 {[%clk 0:02:29.9]} 21. Bb2 {[%clk
0:01:52.9]} 21... Rfc8 {[%clk 0:02:29.9]} 22. Rac1 {[%clk 0:01:52.5]} 22... h6
{[%clk 0:02:15.2]} 23. Nd2 {[%clk 0:01:51.1]} 23... Nb6 {[%clk 0:02:11.7]} 24.
Qc5 {[%clk 0:01:49.2]} 24... Qd5+ {[%clk 0:02:12.1]} 25. Kg1 {[%clk 0:01:39.8]}
25... Nd7 {[%clk 0:02:11.5]} 26. Qc3 {[%clk 0:01:29.7]} 26... b6 {[%clk
0:02:07]} 27. Nc4 {[%clk 0:01:29]} 27... h5 {[%clk 0:01:55.9]} 28. Ne3 {[%clk
0:01:21.3]} 28... Qf3 {[%clk 0:01:51.4]} 29. Nc4 {[%clk 0:01:21.2]} 29... Qd5
{[%clk 0:01:47.7]} 30. Ne3 {[%clk 0:01:21]} 30... Qe4 {[%clk 0:01:47.8]} 31. Nc4
{[%clk 0:01:18.5]} 31... Qg4 {[%clk 0:01:42.4]} 32. Nd6 {[%clk 0:01:11.8]} 32...
Rc7 {[%clk 0:01:41.5]} 33. Nb5 {[%clk 0:01:10.4]} 33... Rcc8 {[%clk 0:01:37]}
34. Nd6 {[%clk 0:01:10.4]} 34... Rc7 {[%clk 0:01:16.7]} 35. Nb5 {[%clk
0:00:53.6]} 35... Rcc8 {[%clk 0:01:14.4]} 36. Nd6 {[%clk 0:00:53.3]} 1/2-1/2

[Event "*** Titled Tuesday Blitz"]
[Site "Chess.com"]
[Date "2020.05.12"]
[Round "10"]
[White "AlanZhang"]
[Black "GM_LOADING"]
[Result "0-1"]
[WhiteElo "2167"]
[BlackElo "2431"]
[TimeControl "180+1"]
[EndTime "11:51:55 PDT"]
[Termination "GM_LOADING won on time"]

1. e4 {[%clk 0:03:00.9]} 1... a6 {[%clk 0:02:49.7]} 2. d4 {[%clk 0:02:59.4]}
2... h6 {[%clk 0:02:36.9]} 3. Nc3 {[%clk 0:02:53.8]} 3... a5 {[%clk 0:02:32.5]}
4. Bc4 {[%clk 0:02:47.5]} 4... c6 {[%clk 0:02:26.1]} 5. Qf3 {[%clk 0:02:45.1]}
5... e6 {[%clk 0:02:24.5]} 6. a4 {[%clk 0:02:41.9]} 6... d5 {[%clk 0:02:22.9]}
7. exd5 {[%clk 0:02:39.2]} 7... cxd5 {[%clk 0:02:22.4]} 8. Bb5+ {[%clk
0:02:36.6]} 8... Nc6 {[%clk 0:02:22.4]} 9. Bd2 {[%clk 0:02:32.9]} 9... Nf6
{[%clk 0:02:22.6]} 10. Nge2 {[%clk 0:02:32]} 10... Bd7 {[%clk 0:02:20.7]} 11.
O-O {[%clk 0:02:27.4]} 11... Bd6 {[%clk 0:02:20.4]} 12. Bf4 {[%clk 0:02:22]}
12... Qc7 {[%clk 0:02:14.6]} 13. Qg3 {[%clk 0:01:45.3]} 13... Bxf4 {[%clk
0:02:02.4]} 14. Nxf4 {[%clk 0:01:42.4]} 14... Nxd4 {[%clk 0:01:53.3]} 15. Qxg7
{[%clk 0:01:23.8]} 15... Qxf4 {[%clk 0:01:48.1]} 16. Qxh8+ {[%clk 0:01:13.3]}
16... Ke7 {[%clk 0:01:47.8]} 17. Qxa8 {[%clk 0:01:13.2]} 17... Ng4 {[%clk
0:01:45]} 18. g3 {[%clk 0:01:04.7]} 18... Nf3+ {[%clk 0:01:42]} 19. Kg2 {[%clk
0:01:02.4]} 19... Nh4+ {[%clk 0:01:42.1]} 20. Kh3 {[%clk 0:00:17.2]} 20... Qf5
{[%clk 0:01:40.5]} 21. Nxd5+ {[%clk 0:00:03.2]} 21... exd5 {[%clk 0:01:34.2]}
22. Bxd7 {[%clk 0:00:01.6]} 22... Qxd7 {[%clk 0:01:31]} 0-1

[Event "*** Titled Tuesday Blitz"]
[Site "Chess.com"]
[Date "2020.05.12"]
[Round "10"]
[White "Rodalquilar"]
[Black "TengisChess"]
[Result "0-1"]
[WhiteElo "2607"]
[BlackElo "2522"]
[TimeControl "180+1"]
[EndTime "11:51:57 PDT"]
[Termination "TengisChess won by resignation"]

1. e4 {[%clk 0:03:00.9]} 1... c6 {[%clk 0:02:59.8]} 2. Nf3 {[%clk 0:02:59.5]}
2... d5 {[%clk 0:03:00]} 3. exd5 {[%clk 0:03:00.4]} 3... cxd5 {[%clk 0:03:00.1]}
4. Ne5 {[%clk 0:03:00.9]} 4... Nc6 {[%clk 0:03:00.6]} 5. Bb5 {[%clk 0:03:00.8]}
5... Bd7 {[%clk 0:03:00.8]} 6. Nxd7 {[%clk 0:03:01.3]} 6... Qxd7 {[%clk
0:03:01.7]} 7. d4 {[%clk 0:03:01.8]} 7... e6 {[%clk 0:02:59]} 8. O-O {[%clk
0:03:01.9]} 8... Bd6 {[%clk 0:02:58.8]} 9. c3 {[%clk 0:03:02.2]} 9... Nf6 {[%clk
0:02:58.2]} 10. Nd2 {[%clk 0:03:02.6]} 10... a6 {[%clk 0:02:58.5]} 11. Bd3
{[%clk 0:03:02.2]} 11... O-O {[%clk 0:02:58.4]} 12. Nf3 {[%clk 0:03:02.5]} 12...
b5 {[%clk 0:02:57.9]} 13. Re1 {[%clk 0:03:00.7]} 13... Rab8 {[%clk 0:02:56.7]}
14. Bg5 {[%clk 0:03:00.7]} 14... Be7 {[%clk 0:02:56.8]} 15. Bf4 {[%clk 0:02:45]}
15... Rb7 {[%clk 0:02:54.5]} 16. Ne5 {[%clk 0:02:45.4]} 16... Qc8 {[%clk
0:02:54.1]} 17. Qf3 {[%clk 0:02:42.5]} 17... Nxe5 {[%clk 0:02:53.4]} 18. dxe5
{[%clk 0:02:41.4]} 18... Nd7 {[%clk 0:02:52.6]} 19. Qh3 {[%clk 0:02:40.3]} 19...
g6 {[%clk 0:02:52.4]} 20. Re3 {[%clk 0:02:32.7]} 20... Rd8 {[%clk 0:02:49.9]}
21. Rae1 {[%clk 0:02:23.5]} 21... Nc5 {[%clk 0:02:49.5]} 22. Bb1 {[%clk
0:02:22.2]} 22... d4 {[%clk 0:02:46.7]} 23. Rf3 {[%clk 0:02:18]} 23... dxc3
{[%clk 0:02:42.8]} 24. Rxc3 {[%clk 0:02:18]} 24... b4 {[%clk 0:02:40.5]} 25. Rf3
{[%clk 0:02:18]} 25... Rbd7 {[%clk 0:02:39]} 26. Bc2 {[%clk 0:02:15.3]} 26...
Qc6 {[%clk 0:02:28.8]} 27. Be3 {[%clk 0:02:03]} 27... Nd3 {[%clk 0:02:26.8]} 28.
Rxf7 {[%clk 0:01:37.5]} 28... h5 {[%clk 0:02:20.7]} 29. Ba4 {[%clk 0:01:01.4]}
29... Nxe1 {[%clk 0:01:59.7]} 30. Bxc6 {[%clk 0:00:56.6]} 30... Rd1 {[%clk
0:01:55.8]} 31. Rf8+ {[%clk 0:00:34.3]} 31... Kxf8 {[%clk 0:01:49.8]} 32. Bh6+
{[%clk 0:00:33.6]} 32... Kf7 {[%clk 0:01:44.6]} 33. Kf1 {[%clk 0:00:27.2]} 33...
Nf3+ {[%clk 0:01:37.1]} 34. Ke2 {[%clk 0:00:25.2]} 34... Ng1+ {[%clk 0:01:37.6]}
0-1

[Event "*** Titled Tuesday Blitz"]
[Site "Chess.com"]
[Date "2020.05.12"]
[Round "10"]
[White "Gevo1990"]
[Black "GM-2023"]
[Result "1-0"]
[WhiteElo "2596"]
[BlackElo "2067"]
[TimeControl "180+1"]
[EndTime "11:51:58 PDT"]
[Termination "Gevo1990 won on time"]

1. Nf3 {[%clk 0:03:00.9]} 1... Nf6 {[%clk 0:02:56.8]} 2. g3 {[%clk 0:03:00.2]}
2... g6 {[%clk 0:02:56.8]} 3. Bg2 {[%clk 0:03:01.1]} 3... Bg7 {[%clk 0:02:52.8]}
4. O-O {[%clk 0:03:02]} 4... O-O {[%clk 0:02:52.5]} 5. d4 {[%clk 0:03:02.4]}
5... d5 {[%clk 0:02:52.5]} 6. c4 {[%clk 0:03:02.4]} 6... dxc4 {[%clk 0:02:53.4]}
7. Na3 {[%clk 0:03:01.8]} 7... c3 {[%clk 0:02:51.1]} 8. bxc3 {[%clk 0:03:01.2]}
8... c5 {[%clk 0:02:44.2]} 9. e3 {[%clk 0:03:00.6]} 9... Nc6 {[%clk 0:02:43.7]}
10. Nc4 {[%clk 0:02:56.5]} 10... Be6 {[%clk 0:02:28.8]} 11. Ncd2 {[%clk
0:02:53.8]} 11... Qa5 {[%clk 0:02:25.9]} 12. Bb2 {[%clk 0:02:50.4]} 12... Qb6
{[%clk 0:02:04.2]} 13. Ba3 {[%clk 0:02:44.1]} 13... cxd4 {[%clk 0:01:48.8]} 14.
cxd4 {[%clk 0:02:43.6]} 14... Qa6 {[%clk 0:01:48.9]} 15. Qc1 {[%clk 0:02:38.3]}
15... Rac8 {[%clk 0:01:47.4]} 16. Qb2 {[%clk 0:02:38.5]} 16... Na5 {[%clk
0:01:44.5]} 17. Rfc1 {[%clk 0:02:38]} 17... Nd5 {[%clk 0:01:23.4]} 18. Bf1
{[%clk 0:02:34.4]} 18... Qb6 {[%clk 0:01:13.3]} 19. Qxb6 {[%clk 0:02:33.2]}
19... Nxb6 {[%clk 0:01:13.5]} 20. Bxe7 {[%clk 0:02:32.2]} 20... Rfe8 {[%clk
0:01:10.1]} 21. Bc5 {[%clk 0:02:32.4]} 21... Bd5 {[%clk 0:00:16.4]} 22. Ne1
{[%clk 0:02:19.9]} 22... Na4 {[%clk 0:00:08.2]} 23. Bb5 {[%clk 0:02:16.9]} 23...
Bc6 {[%clk 0:00:07]} 24. Bxa4 {[%clk 0:02:13.2]} 24... Bxa4 {[%clk 0:00:06.4]}
25. Bxa7 {[%clk 0:02:12]} 25... Nc6 {[%clk 0:00:03.4]} 26. Bc5 {[%clk 0:02:11]}
26... Ne7 {[%clk 0:00:02.1]} 27. Bxe7 {[%clk 0:02:10.6]} 27... Rxc1 {[%clk
0:00:02.2]} 28. Rxc1 {[%clk 0:02:11.1]} 28... Rxe7 {[%clk 0:00:02.7]} 29. Rc8+
{[%clk 0:02:11.6]} 29... Bf8 {[%clk 0:00:02.5]} 30. Nd3 {[%clk 0:02:06.4]} 30...
Kg7 {[%clk 0:00:01.9]} 31. Nc5 {[%clk 0:02:05.4]} 31... Bc6 {[%clk 0:00:02]} 32.
Nc4 {[%clk 0:02:05.3]} 1-0

[Event "*** Titled Tuesday Blitz"]
[Site "Chess.com"]
[Date "2020.05.12"]
[Round "10"]
[White "BaMBoMaTTo"]
[Black "ezkybel"]
[Result "0-1"]
[WhiteElo "2638"]
[BlackElo "2543"]
[TimeControl "180+1"]
[EndTime "11:51:59 PDT"]
[Termination "ezkybel won by resignation"]

1. e4 {[%clk 0:02:59.9]} 1... e6 {[%clk 0:02:59.3]} 2. d4 {[%clk 0:02:59.9]}
2... d5 {[%clk 0:02:59.1]} 3. Nc3 {[%clk 0:03:00.1]} 3... Nf6 {[%clk 0:02:58.8]}
4. e5 {[%clk 0:03:00.5]} 4... Ne4 {[%clk 0:02:59]} 5. Nxe4 {[%clk 0:02:59.4]}
5... dxe4 {[%clk 0:02:59.9]} 6. Bc4 {[%clk 0:02:59.9]} 6... c5 {[%clk
0:02:59.5]} 7. d5 {[%clk 0:02:58.5]} 7... exd5 {[%clk 0:02:56.2]} 8. Qxd5 {[%clk
0:02:57.7]} 8... Qxd5 {[%clk 0:02:55.2]} 9. Bxd5 {[%clk 0:02:58.6]} 9... Nc6
{[%clk 0:02:54.2]} 10. Bf4 {[%clk 0:02:54.1]} 10... Bf5 {[%clk 0:02:52.8]} 11.
Bxc6+ {[%clk 0:02:53.7]} 11... bxc6 {[%clk 0:02:52.6]} 12. O-O-O {[%clk
0:02:54]} 12... Be7 {[%clk 0:02:52]} 13. Ne2 {[%clk 0:02:51.5]} 13... g5 {[%clk
0:02:51.4]} 14. Be3 {[%clk 0:02:41.7]} 14... h5 {[%clk 0:02:50.5]} 15. Nc3
{[%clk 0:02:35.1]} 15... O-O {[%clk 0:02:47.5]} 16. Na4 {[%clk 0:02:34.4]} 16...
Rfe8 {[%clk 0:02:42.1]} 17. Rhe1 {[%clk 0:02:17]} 17... Kg7 {[%clk 0:02:25.9]}
18. f3 {[%clk 0:01:48.6]} 18... Kg6 {[%clk 0:02:17.3]} 19. Bxc5 {[%clk 0:01:39]}
19... exf3 {[%clk 0:02:16.6]} 20. gxf3 {[%clk 0:01:37.1]} 20... Rad8 {[%clk
0:02:15.1]} 21. Rxd8 {[%clk 0:01:25.7]} 21... Bxd8 {[%clk 0:02:14.1]} 22. Bxa7
{[%clk 0:01:25.7]} 22... Bc7 {[%clk 0:02:12.6]} 23. Bd4 {[%clk 0:01:23.7]} 23...
f6 {[%clk 0:02:12.4]} 24. Nc5 {[%clk 0:01:09.1]} 24... fxe5 {[%clk 0:02:12]} 25.
Bc3 {[%clk 0:01:04.4]} 25... g4 {[%clk 0:02:11.3]} 26. fxg4 {[%clk 0:00:54.7]}
26... hxg4 {[%clk 0:02:12.2]} 27. Re2 {[%clk 0:00:22]} 27... e4 {[%clk
0:02:11.9]} 28. Be1 {[%clk 0:00:21.7]} 28... Bd6 {[%clk 0:02:10.1]} 29. Nb3
{[%clk 0:00:18.4]} 29... Bf4+ {[%clk 0:02:09.4]} 30. Bd2 {[%clk 0:00:14.2]}
30... e3 {[%clk 0:02:09.1]} 31. Be1 {[%clk 0:00:13]} 31... Be4 {[%clk
0:02:09.5]} 32. Bg3 {[%clk 0:00:11.3]} 32... Bg5 {[%clk 0:02:08.4]} 33. Nd4
{[%clk 0:00:05.3]} 33... Bf3 {[%clk 0:02:08.2]} 34. Re1 {[%clk 0:00:05.8]} 34...
e2+ {[%clk 0:02:07.9]} 35. Kb1 {[%clk 0:00:05.6]} 35... Bd2 {[%clk 0:02:08]} 0-1

[Event "*** Titled Tuesday Blitz"]
[Site "Chess.com"]
[Date "2020.05.12"]
[Round "10"]
[White "AnthonyWirig"]
[Black "przemekpiotrowski"]
[Result "1-0"]
[WhiteElo "2583"]
[BlackElo "2434"]
[TimeControl "180+1"]
[EndTime "11:51:59 PDT"]
[Termination "AnthonyWirig won by resignation"]

1. d4 {[%clk 0:03:00.9]} 1... c5 {[%clk 0:02:58]} 2. d5 {[%clk 0:03:00.6]} 2...
e5 {[%clk 0:02:58.4]} 3. e4 {[%clk 0:02:59.7]} 3... d6 {[%clk 0:02:58.7]} 4. f4
{[%clk 0:03:00.3]} 4... exf4 {[%clk 0:02:58.3]} 5. Bxf4 {[%clk 0:03:01.2]} 5...
Be7 {[%clk 0:02:58.6]} 6. Nf3 {[%clk 0:03:00.1]} 6... Bf6 {[%clk 0:02:54.7]} 7.
c3 {[%clk 0:02:57.3]} 7... Ne7 {[%clk 0:02:55.1]} 8. Nbd2 {[%clk 0:02:55.9]}
8... Ng6 {[%clk 0:02:55.4]} 9. Bg3 {[%clk 0:02:52.9]} 9... Qe7 {[%clk 0:02:39]}
10. Qc2 {[%clk 0:02:40.2]} 10... O-O {[%clk 0:02:17.7]} 11. Nc4 {[%clk
0:02:35.8]} 11... Rd8 {[%clk 0:02:17.7]} 12. a4 {[%clk 0:02:34.9]} 12... b6
{[%clk 0:02:14.9]} 13. h4 {[%clk 0:02:26.6]} 13... Bg4 {[%clk 0:02:11.9]} 14. h5
{[%clk 0:02:21.4]} 14... Bxf3 {[%clk 0:02:09.9]} 15. gxf3 {[%clk 0:02:19.1]}
15... Ne5 {[%clk 0:02:07.7]} 16. Nxe5 {[%clk 0:02:19.1]} 16... Bxe5 {[%clk
0:02:07.8]} 17. f4 {[%clk 0:02:19]} 17... Bf6 {[%clk 0:02:06.6]} 18. Kf2 {[%clk
0:02:01.8]} 18... a6 {[%clk 0:02:06.6]} 19. Bh3 {[%clk 0:02:01.3]} 19... g6
{[%clk 0:02:02.6]} 20. hxg6 {[%clk 0:01:59.5]} 20... hxg6 {[%clk 0:02:02.5]} 21.
Bg4 {[%clk 0:01:57]} 21... Nd7 {[%clk 0:01:59.1]} 22. Rh3 {[%clk 0:01:54.3]}
22... Re8 {[%clk 0:01:55.6]} 23. Bf3 {[%clk 0:01:54.2]} 23... Bg7 {[%clk
0:01:54.4]} 24. Re1 {[%clk 0:01:49.3]} 24... b5 {[%clk 0:01:46.3]} 25. axb5
{[%clk 0:01:45.6]} 25... axb5 {[%clk 0:01:47.2]} 26. Re2 {[%clk 0:01:45.8]}
26... b4 {[%clk 0:01:41.6]} 27. Kg2 {[%clk 0:01:43.3]} 27... bxc3 {[%clk
0:01:40.9]} 28. bxc3 {[%clk 0:01:44.2]} 28... Ra3 {[%clk 0:01:40.9]} 29. e5
{[%clk 0:01:40.1]} 29... dxe5 {[%clk 0:01:39.4]} 30. f5 {[%clk 0:01:40.6]} 30...
Qg5 {[%clk 0:01:33.1]} 31. fxg6 {[%clk 0:01:34.4]} 31... fxg6 {[%clk 0:01:29.9]}
32. d6 {[%clk 0:01:28.3]} 32... e4 {[%clk 0:01:26.5]} 33. Rxe4 {[%clk
0:01:25.5]} 33... Rxe4 {[%clk 0:01:13.2]} 34. Qxe4 {[%clk 0:01:26.4]} 34... Ra2+
{[%clk 0:01:13.8]} 35. Be2 {[%clk 0:01:24]} 35... Be5 {[%clk 0:01:09.3]} 36.
Qd5+ {[%clk 0:01:21.3]} 36... Kg7 {[%clk 0:01:07.2]} 37. Qxa2 {[%clk 0:01:20]}
37... Bxd6 {[%clk 0:00:51.7]} 38. Qe6 {[%clk 0:01:15.7]} 1-0

[Event "*** Titled Tuesday Blitz"]
[Site "Chess.com"]
[Date "2020.05.12"]
[Round "10"]
[White "Durarbayli"]
[Black "SaySpade4VIP"]
[Result "1-0"]
[WhiteElo "2800"]
[BlackElo "2673"]
[TimeControl "180+1"]
[EndTime "11:52:01 PDT"]
[Termination "Durarbayli won by resignation"]

1. e4 {[%clk 0:03:00.9]} 1... c6 {[%clk 0:02:55.2]} 2. Nc3 {[%clk 0:02:59.2]}
2... d5 {[%clk 0:02:56.1]} 3. Nf3 {[%clk 0:02:59.6]} 3... dxe4 {[%clk 0:02:52]}
4. Nxe4 {[%clk 0:03:00.5]} 4... Nf6 {[%clk 0:02:52.9]} 5. Qe2 {[%clk 0:03:00.6]}
5... Nxe4 {[%clk 0:02:51.4]} 6. Qxe4 {[%clk 0:03:01.5]} 6... Qa5 {[%clk
0:02:52]} 7. Qf4 {[%clk 0:03:01.1]} 7... Qf5 {[%clk 0:02:47.5]} 8. Qe3 {[%clk
0:03:01.2]} 8... Nd7 {[%clk 0:02:27]} 9. Bd3 {[%clk 0:02:54]} 9... Qh5 {[%clk
0:02:23.3]} 10. b3 {[%clk 0:02:52.9]} 10... Nf6 {[%clk 0:02:21.8]} 11. Bb2
{[%clk 0:02:49.7]} 11... Nd5 {[%clk 0:02:14.9]} 12. Qe4 {[%clk 0:02:49.6]} 12...
Bg4 {[%clk 0:02:06.4]} 13. Ne5 {[%clk 0:02:46.3]} 13... Be6 {[%clk 0:01:49.3]}
14. h4 {[%clk 0:02:27.7]} 14... f5 {[%clk 0:01:24]} 15. Qd4 {[%clk 0:02:21.6]}
15... Qh6 {[%clk 0:01:06.6]} 16. O-O-O {[%clk 0:02:18.8]} 16... Qf4 {[%clk
0:01:03.8]} 17. Rde1 {[%clk 0:02:09.6]} 17... Qxd4 {[%clk 0:01:01.6]} 18. Bxd4
{[%clk 0:02:10.5]} 18... Nf4 {[%clk 0:01:00]} 19. Bf1 {[%clk 0:02:04.8]} 19...
Bd5 {[%clk 0:00:57.9]} 20. f3 {[%clk 0:02:05]} 20... Rg8 {[%clk 0:00:31.6]} 21.
h5 {[%clk 0:01:55]} 21... a5 {[%clk 0:00:26.3]} 22. Be3 {[%clk 0:01:45.1]} 22...
g5 {[%clk 0:00:20.1]} 23. g3 {[%clk 0:01:42.5]} 23... Ne6 {[%clk 0:00:13.6]} 24.
c4 {[%clk 0:01:42.4]} 24... f4 {[%clk 0:00:11.5]} 25. gxf4 {[%clk 0:01:40.8]}
25... gxf4 {[%clk 0:00:12.3]} 26. Bf2 {[%clk 0:01:40.8]} 1-0

[Event "*** Titled Tuesday Blitz"]
[Site "Chess.com"]
[Date "2020.05.12"]
[Round "10"]
[White "petrkostenko"]
[Black "Camels1981"]
[Result "1-0"]
[WhiteElo "2487"]
[BlackElo "2324"]
[TimeControl "180+1"]
[EndTime "11:52:04 PDT"]
[Termination "petrkostenko won by resignation"]

1. e4 {[%clk 0:03:00.9]} 1... c5 {[%clk 0:02:57.7]} 2. Nf3 {[%clk 0:03:01]} 2...
d6 {[%clk 0:02:57.2]} 3. Bb5+ {[%clk 0:03:00.9]} 3... Bd7 {[%clk 0:02:56.8]} 4.
Bxd7+ {[%clk 0:03:00]} 4... Qxd7 {[%clk 0:02:57.7]} 5. O-O {[%clk 0:02:59.7]}
5... g6 {[%clk 0:02:57.2]} 6. c3 {[%clk 0:02:59.2]} 6... Bg7 {[%clk 0:02:57.2]}
7. d4 {[%clk 0:02:58.6]} 7... cxd4 {[%clk 0:02:57.3]} 8. cxd4 {[%clk 0:02:58.2]}
8... Nf6 {[%clk 0:02:58.2]} 9. Nc3 {[%clk 0:02:52.3]} 9... O-O {[%clk
0:02:57.3]} 10. h3 {[%clk 0:02:42]} 10... Nc6 {[%clk 0:02:56.2]} 11. e5 {[%clk
0:02:34.1]} 11... Ne8 {[%clk 0:02:52.5]} 12. Qe2 {[%clk 0:02:30.3]} 12... dxe5
{[%clk 0:02:46.2]} 13. dxe5 {[%clk 0:02:29.8]} 13... Nc7 {[%clk 0:02:44.3]} 14.
Qe4 {[%clk 0:02:19.3]} 14... Rad8 {[%clk 0:02:41]} 15. Re1 {[%clk 0:01:39.4]}
15... Nd4 {[%clk 0:02:25.3]} 16. Nxd4 {[%clk 0:01:35.7]} 16... Qxd4 {[%clk
0:02:26.2]} 17. Bg5 {[%clk 0:01:34.1]} 17... Qxe4 {[%clk 0:02:24.2]} 18. Rxe4
{[%clk 0:01:33.2]} 18... Rfe8 {[%clk 0:02:24.7]} 19. Be3 {[%clk 0:01:26.6]}
19... Ne6 {[%clk 0:02:23.5]} 20. Bxa7 {[%clk 0:01:25]} 20... Rd2 {[%clk
0:02:21.9]} 21. Rb1 {[%clk 0:01:25]} 21... Red8 {[%clk 0:02:08]} 22. Be3 {[%clk
0:01:24.3]} 22... Rc2 {[%clk 0:02:07.2]} 23. Kf1 {[%clk 0:01:24.4]} 23... Ra8
{[%clk 0:01:59.4]} 24. a3 {[%clk 0:01:24.1]} 24... Nd8 {[%clk 0:01:56.2]} 25.
Ke1 {[%clk 0:01:20.5]} 25... Nc6 {[%clk 0:01:40.5]} 26. Kd1 {[%clk 0:01:20.3]}
26... Rxc3 {[%clk 0:01:40.9]} 27. bxc3 {[%clk 0:01:19.8]} 27... Rxa3 {[%clk
0:01:41.8]} 28. f4 {[%clk 0:01:17]} 28... Rxc3 {[%clk 0:01:39.7]} 29. Rxb7
{[%clk 0:01:16.6]} 29... e6 {[%clk 0:01:37.4]} 30. Rc7 {[%clk 0:01:08.9]} 30...
Bf8 {[%clk 0:01:22.9]} 31. Bd2 {[%clk 0:01:07.2]} 31... Rc5 {[%clk 0:01:19.1]}
32. Ra4 {[%clk 0:01:03.8]} 32... h5 {[%clk 0:01:08.2]} 33. Ra8 {[%clk
0:01:00.7]} 33... Kg7 {[%clk 0:01:07.8]} 34. Rac8 {[%clk 0:01:00.7]} 34... Rd5
{[%clk 0:01:06.4]} 35. Rxc6 {[%clk 0:01:00.3]} 35... Bb4 {[%clk 0:01:07.3]} 36.
Rc2 {[%clk 0:01:00]} 36... Rd4 {[%clk 0:01:07.9]} 37. R8c4 {[%clk 0:00:57.6]}
1-0

[Event "*** Titled Tuesday Blitz"]
[Site "Chess.com"]
[Date "2020.05.12"]
[Round "10"]
[White "Kostya26"]
[Black "Kensei26"]
[Result "1-0"]
[WhiteElo "2399"]
[BlackElo "2237"]
[TimeControl "180+1"]
[EndTime "11:52:05 PDT"]
[Termination "Kostya26 won by resignation"]

1. e4 {[%clk 0:03:00.9]} 1... d6 {[%clk 0:02:59.9]} 2. d4 {[%clk 0:02:56.5]}
2... Nf6 {[%clk 0:02:44.1]} 3. Nc3 {[%clk 0:02:57.4]} 3... g6 {[%clk 0:02:43.8]}
4. Nf3 {[%clk 0:02:57.8]} 4... Bg7 {[%clk 0:02:44]} 5. Bg5 {[%clk 0:02:58.2]}
5... O-O {[%clk 0:02:41.7]} 6. Bc4 {[%clk 0:02:58.1]} 6... Nxe4 {[%clk
0:02:38.9]} 7. Nxe4 {[%clk 0:02:55.5]} 7... d5 {[%clk 0:02:39.3]} 8. Bd3 {[%clk
0:02:55.8]} 8... dxe4 {[%clk 0:02:39.5]} 9. Bxe4 {[%clk 0:02:56.7]} 9... c5
{[%clk 0:02:39.8]} 10. c3 {[%clk 0:02:51.9]} 10... cxd4 {[%clk 0:02:39.1]} 11.
Nxd4 {[%clk 0:02:52.8]} 11... Qa5 {[%clk 0:02:26.7]} 12. Be3 {[%clk 0:02:46.9]}
12... Rd8 {[%clk 0:02:24.9]} 13. O-O {[%clk 0:02:33.8]} 13... e5 {[%clk
0:02:17.5]} 14. Nb3 {[%clk 0:02:33.9]} 14... Rxd1 {[%clk 0:02:08]} 15. Nxa5
{[%clk 0:02:33.2]} 15... Rxa1 {[%clk 0:02:08.2]} 16. Rxa1 {[%clk 0:02:32.8]}
16... Nc6 {[%clk 0:01:53.1]} 17. Nxc6 {[%clk 0:02:27.5]} 17... bxc6 {[%clk
0:01:53.3]} 18. Bxc6 {[%clk 0:02:27]} 18... Rb8 {[%clk 0:01:54]} 19. b3 {[%clk
0:02:23.5]} 19... e4 {[%clk 0:01:48.5]} 20. Rd1 {[%clk 0:02:09.2]} 20... Bg4
{[%clk 0:01:46.6]} 21. Rc1 {[%clk 0:01:52.1]} 21... f5 {[%clk 0:01:30]} 22. Bxa7
{[%clk 0:01:44.3]} 22... Rd8 {[%clk 0:01:28.8]} 23. Be3 {[%clk 0:01:42.6]} 23...
Kh8 {[%clk 0:01:10]} 24. h3 {[%clk 0:01:39.9]} 24... Be2 {[%clk 0:01:09.5]} 25.
c4 {[%clk 0:01:37.1]} 25... Be5 {[%clk 0:01:04.2]} 26. Bd5 {[%clk 0:01:33.7]}
26... f4 {[%clk 0:01:03.8]} 27. Bb6 {[%clk 0:01:29.4]} 27... Rb8 {[%clk
0:00:56.4]} 28. Ba5 {[%clk 0:01:25.9]} 28... Re8 {[%clk 0:00:55.7]} 29. Bxe4
{[%clk 0:01:21.5]} 29... Bb2 {[%clk 0:00:55.5]} 30. Rc2 {[%clk 0:01:21.5]} 30...
Rxe4 {[%clk 0:00:50.3]} 31. Rxb2 {[%clk 0:01:21.7]} 31... f3 {[%clk 0:00:50.5]}
32. gxf3 {[%clk 0:01:18.5]} 32... Bxf3 {[%clk 0:00:50.4]} 33. Kh2 {[%clk
0:01:19.1]} 33... h5 {[%clk 0:00:48.7]} 34. Kg3 {[%clk 0:01:14.6]} 34... Be2
{[%clk 0:00:46.2]} 35. Bc3+ {[%clk 0:01:11.4]} 35... Kh7 {[%clk 0:00:45.9]} 36.
f3 {[%clk 0:01:09.4]} 36... h4+ {[%clk 0:00:46]} 37. Kf2 {[%clk 0:01:08.8]}
37... Bxf3 {[%clk 0:00:44]} 38. Kxf3 {[%clk 0:01:08.8]} 1-0